Cogmind - Beta 15 @@@ ROGUE MODE // 2025.08.01 @ 19:50:22 Player: McSaucyNugget Result: Self-destructed Performance ------------- Evolutions (6) 3000 Regions Visited (21) 4200 Robots Destroyed (362) 1810 Value Destroyed (15969) 15969 Prototype IDs (15) 300 Alien Tech Used (0) 0 Bonus (10207) 10207 TOTAL SCORE: 35486 Bonus ------- High Alert Combat Kills 1389 Follower Combat Kills 2046 Entered Garrisons 1200 Used RIF Installer 4000 Network Hubs Disabled 200 Met Zhirov 300 Built Enhanced Grunts 300 A7 Reached Mainframe 300 Met R17 at Cetus 500 Friendly Fire -28 Cogmind --------- Core Integrity 1119/1150 Matter 125/300 Energy 575/575 System Corruption 0% Temperature Cool (0) Movement Treading (160) Location -4/Factory Parts ------- > --- POWER (2) -------- Antimatter Reactor Quantum Reactor > --- PROPULSION (5) --- Improved Treads Centrium Heavy Treads Centrium Heavy Treads > --- UTILITY (8) ------ Advanced Heat Sink Huge Storage Unit Seismic Detector Improved Targeting Computer Improved Weapon Cycler Centrium Medium Armor Plating Relay Coupler [Grunt] (5) Relay Coupler [Behemoth] (18) > --- WEAPON (4) ------- KE Penetrator KE Penetrator Enhanced Coil Gun Railgun > --- INVENTORY (25) --- Quantum Reactor Improved Treads Improved Medium Treads Centrium Heavy Treads Advanced Heat Sink High-capacity Matter Pod (200) Improved Weapon Cycler Improved Medium Armor Plating Improved Hacking Suite Relay Coupler [NC] (53) Relay Coupler [Grunt] (45) High-powered Tractor Beam Heavy Plasma Cannon Gauss Rifle Gauss Rifle KE Penetrator KE Penetrator KE Penetrator Advanced KE Penetrator Hardcell Cannon Heavy Shock Bomb Launcher Long-range Missile Launcher Improved Remote Datajack Improved Plasma Cutter Peak State ------------ > --- POWER ------------ Antimatter Reactor Quantum Reactor > --- PROPULSION ------- Improved Treads Centrium Heavy Treads Centrium Heavy Treads > --- UTILITY ---------- Advanced Heat Sink Huge Storage Unit Improved Targeting Computer Improved Weapon Cycler Centrium Medium Armor Plating Relay Coupler [Grunt] Relay Coupler [Behemoth] High-powered Tractor Beam > --- WEAPON ----------- KE Penetrator KE Penetrator Enhanced Coil Gun Advanced KE Penetrator > --- INVENTORY -------- Quantum Reactor Improved Treads Improved Medium Treads Centrium Heavy Treads Advanced Heat Sink High-capacity Matter Pod Seismic Detector Improved Weapon Cycler Improved Medium Armor Plating Improved Hacking Suite Relay Coupler [NC] Relay Coupler [Grunt] Heavy Plasma Cannon Gauss Rifle Gauss Rifle KE Penetrator KE Penetrator KE Penetrator Heavy Shock Bomb Launcher Long-range Missile Launcher Improved Remote Datajack Improved Plasma Cutter [Rating: 127] Favorites ----------- Power Heavy Ion Engine Engine Heavy Ion Engine Power Core Enhanced Nuclear Core Reactor Antimatter Reactor Propulsion Light Treads Treads Light Treads Wheel Compact Wheel Utility High-capacity Storage Unit Device Advanced Heat Sink Storage High-capacity Storage Unit Processor Improved Targeting Computer Hackware Relay Coupler [Grunt] Protection Improved Medium Armor Plating Weapon KE Penetrator Energy Gun Improved EM Shotgun Energy Cannon Heavy Plasma Cannon Ballistic Gun KE Penetrator Ballistic Cannon Gauss Cannon Launcher Rocket Array Special Weapon Remote Datajack Impact Weapon Maul Build | -11 -10 -10 -9 -9 -8 -8 -7 -7 -7 -7 -6 -6 -6 -6 -5 -5 -5 -5 -5 -5 -4 ------- Run | Yrd Mat Min Mat Sto Mat Gar Fac Gar Fac Gar Fac Gar Fac Gar Fac Ext Cet Arc Hub Gar Fac Slots Evolved 12 | . . . 2 . 2 . 2 . . . 2 . . . 2 . . . . . 2 Power 1 | . . . . . . . . . . . . . . . . . . . . . 1 Propulsion 3 | . . . 1 . 1 . . . . . . . . . 1 . . . . . . Utility 6 | . . . . . 1 . 2 . . . 1 . . . 1 . . . . . 1 Weapon 2 | . . . 1 . . . . . . . 1 . . . . . . . . . . Parts Attached 229 | 6 11 2 12 21 11 15 15 13 . 14 11 15 14 22 9 21 4 . 6 3 4 Power 20 | 1 2 . 2 1 1 . 3 . . 1 1 2 1 2 . 2 . . . . 1 Engine 10 | 1 2 . 2 1 1 . 1 . . . . 1 . 1 . . . . . . . Core 8 | . . . . . . . 2 . . 1 1 1 1 1 . 1 . . . . . Reactor 2 | . . . . . . . . . . . . . . . . 1 . . . . 1 Propulsion 68 | 2 2 2 2 7 3 6 2 6 . 5 3 4 3 7 2 9 2 . . 1 . Treads 59 | 2 1 2 2 7 3 6 2 6 . 5 1 2 2 7 . 8 2 . . 1 . Leg . | . . . . . . . . . . . . . . . . . . . . . . Wheel 9 | . 1 . . . . . . . . . 2 2 1 . 2 1 . . . . . Hover . | . . . . . . . . . . . . . . . . . . . . . . Flight . | . . . . . . . . . . . . . . . . . . . . . . Utility 64 | 1 3 . 1 3 4 3 6 3 . 4 3 6 5 5 4 6 2 . 2 1 2 Device 24 | . 1 . . . 2 2 6 . . . 1 3 . 2 2 3 . . 1 1 . Storage 6 | 1 1 . . . 1 . . . . . . 1 1 . . . . . . . 1 Processor 7 | . . . . 1 . 1 . . . 1 . . 2 . . . 1 . . . 1 Hackware 6 | . . . . . . . . 1 . . . 1 1 1 . 2 . . . . . Protection 21 | . 1 . 1 2 1 . . 2 . 3 2 1 1 2 2 1 1 . 1 . . Artifact . | . . . . . . . . . . . . . . . . . . . . . . Weapon 77 | 2 4 . 7 10 3 6 4 4 . 4 4 3 5 8 3 4 . . 4 1 1 Energy Gun 13 | 2 1 . 3 2 1 . 1 . . 1 . . 1 1 . . . . . . . Energy Cannon 6 | . . . 1 . . . . 1 . 1 1 . . . 1 . . . 1 . . Ballistic Gun 44 | . 3 . 3 6 1 5 . 2 . 2 3 2 3 6 1 3 . . 2 1 1 Ballistic Cannon 4 | . . . . 1 . . 2 . . . . 1 . . . . . . . . . Launcher 3 | . . . . . . 1 1 . . . . . . 1 . . . . . . . Special Weapon 6 | . . . . . 1 . . 1 . . . . 1 . 1 1 . . 1 . . Impact Weapon 1 | . . . . 1 . . . . . . . . . . . . . . . . . Slashing Weapon . | . . . . . . . . . . . . . . . . . . . . . . Piercing Weapon . | . . . . . . . . . . . . . . . . . . . . . . Special Melee Weapon . | . . . . . . . . . . . . . . . . . . . . . . Unidentified Prototypes 13 | . . . 3 1 1 . 2 . . . . . 1 . 2 . 2 . . 1 . Corrupted Parts 3 | . . . . . . . . . . . 1 1 . . . . . . . 1 . System Corruption 8 | . . . . . . . . . . . 3 2 . . . . . . . 3 . Parts Lost 93 | . 7 2 3 8 1 10 3 6 . 12 3 11 4 20 . 1 . . 1 1 . Power 7 | . 2 . . . 1 . . . . 1 . 1 . 2 . . . . . . . Propulsion 38 | . 2 2 1 2 . 5 . 2 . 7 1 4 2 9 . 1 . . . . . Utility 19 | . 1 . 1 1 . 3 3 2 . 2 1 2 . 3 . . . . . . . Weapon 29 | . 2 . 1 5 . 2 . 2 . 2 1 4 2 6 . . . . 1 1 . Highest Loss Streak 10 | . 2 1 2 2 1 5 2 2 . 3 3 7 1 10 . 1 . . 1 1 . To Critical Strikes 1 | . . . . . . . . . . . . . 1 . . . . . . . . Average Backups 19 | 2 8 16 19 19 19 18 19 19 18 18 19 19 22 19 21 24 24 24 23 23 23 Power 1 | . . . 1 1 1 1 2 2 2 2 2 1 2 2 2 2 2 2 2 2 1 Propulsion 3 | 1 2 5 5 6 5 3 4 4 4 1 . 3 4 2 . 3 4 4 3 2 3 Utility 5 | . . 1 2 4 5 4 4 4 4 5 5 6 7 5 7 8 7 7 7 8 8 Weapon 7 | . 4 10 9 5 6 7 7 7 6 8 9 6 8 7 9 8 8 9 9 8 9 Tool/Special . | . . . . . . . . . . . . . . . . . . . . . . Unused Backups 81 | . . . 9 7 2 1 7 2 . . 1 9 6 2 1 11 6 1 . 2 14 Power 13 | . . . 1 2 . . 2 . . . 1 . 1 . . 3 2 . . . 1 Propulsion 10 | . . . 1 1 . . . . . . . 2 2 . . 1 2 . . . 1 Utility 27 | . . . 1 4 1 . 2 1 . . . 4 2 2 . 1 1 1 . 2 5 Weapon 30 | . . . 6 . 1 1 3 . . . . 3 1 . 1 6 1 . . . 7 Tool/Special 1 | . . . . . . . . 1 . . . . . . . . . . . . . Average Slot Usage (%) 93 | . 99 99 89 97 99 93 99 94 100 89 74 98 98 87 73 99 93 88 88 87 87 Engine 4 | . 14 14 11 11 9 9 2 . . . . 5 . 2 . . . . . . . Core 2 | . . . . . . . 4 7 7 6 6 . 5 3 5 4 . . . . . Treads 23 | . 24 21 29 32 36 34 30 28 30 23 13 12 12 15 11 20 22 17 17 16 15 Wheel 2 | . 3 5 . . . . . . . . 1 12 13 2 1 6 . . . . . Device 8 | . 9 14 2 . 12 3 17 15 15 7 6 5 5 3 2 12 11 11 11 11 14 Storage 7 | . 14 14 11 11 9 9 7 7 7 7 6 6 6 6 5 5 5 5 5 5 5 Processor 5 | . . . . 1 . 1 7 7 7 12 13 13 13 13 5 5 5 5 5 5 5 Hackware 2 | . . . . . . . . . . . . 1 6 6 5 6 11 11 11 11 10 Protection 6 | . 3 . 2 9 5 8 4 4 7 7 3 11 6 7 17 8 5 5 4 5 4 Energy Gun 4 | . 11 . 8 7 9 1 5 5 . 5 1 . 2 3 . . . . . . . Ballistic Gun 18 | . 16 28 24 22 17 25 11 10 15 8 17 19 17 18 10 18 22 23 21 20 18 Ballistic Cannon 1 | . . . . . . . 4 3 7 . . 5 3 . . . . . . . . Peak Build Rating 127 | 6 10 10 17 19 25 27 37 40 39 44 48 53 59 59 66 86 118 114 118 116 127 Average Rating 45 | 3 8 9 13 17 23 22 33 36 38 39 38 50 54 51 53 75 101 114 113 114 123 On Entrance 47 | . 6 10 10 17 19 25 24 37 37 39 33 48 52 58 37 61 86 114 114 109 116 Naked Turns . | . . . . . . . . . . . . . . . . . . . . . . Heaviest Build 152 | 11 51 46 60 64 66 71 73 75 71 81 73 87 118 115 125 130 125 125 130 126 152 Greatest Support 190 | 40 40 40 60 60 80 80 80 80 80 80 60 32 28 96 42 129 190 190 190 183 183 Greatest Overweight (x) 7 | . 2 2 1 1 . 1 . 1 . 1 4 6 4 4 7 7 . . . . . Average Overweight (x) . | . 1 1 . . . . . . . . 1 2 3 2 2 2 . . . . . Largest Inventory Capacity 25 | 8 20 20 20 20 20 20 20 20 20 20 20 20 25 25 25 25 25 25 25 25 25 Average Capacity 21 | 5 18 20 20 20 20 20 20 20 20 20 20 20 23 25 25 25 25 25 25 25 25 Most Carried 25 | 4 18 18 20 20 20 20 20 20 20 20 20 20 25 25 24 25 25 25 25 25 25 Average Carried 19 | 2 8 16 19 19 19 18 19 19 18 18 19 19 22 19 21 24 24 25 24 24 24 Final Capacity 25 | 8 20 20 20 20 20 20 20 20 20 20 20 20 25 25 25 25 25 25 25 25 25 Final Carried 25 | 4 18 17 20 20 20 20 20 18 20 20 20 19 25 20 23 25 25 25 25 25 25 Class Distribution -------------------- 35% | Scavenger-Gunner 30% | Scavenger-Tank 10% | Mutant 7% | Tank 6% | Bothacker-Tank 4% | Gunner 3% | Scavenger-Mutant Dominant Class ---------------- Mutant | -10/Materials Mutant | -10/Mines Gunner | -9/Materials Tank | -9/Storage Scavenger-Tank | -8/Materials Scavenger-Tank | -8/Garrison Scavenger-Gunner | -7/Factory Scavenger-Tank | -7/Garrison Scavenger-Tank | -7/Factory Scavenger-Gunner | -7/Garrison Scavenger-Gunner | -6/Factory Scavenger-Gunner | -6/Garrison Scavenger-Gunner | -6/Factory Scavenger-Gunner | -6/Garrison Bothacker-Tank | -5/Factory Scavenger-Gunner | -5/Extension Scavenger-Tank | -5/Cetus Scavenger-Tank | -5/Archives Scavenger-Tank | -5/Hub_04(d) Scavenger-Tank | -5/Garrison Bothacker-Tank | -4/Factory Resources | -11 -10 -10 -9 -9 -8 -8 -7 -7 -7 -7 -6 -6 -6 -6 -5 -5 -5 -5 -5 -5 -4 ----------- Run | Yrd Mat Min Mat Sto Mat Gar Fac Gar Fac Gar Fac Gar Fac Gar Fac Ext Cet Arc Hub Gar Fac Matter Collected 12009 | 251 207 96 467 833 306 930 316 951 87 633 374 1069 1199 833 313 1225 262 . 594 735 328 Remotely 2039 | . . . . . . . . . . . . 310 291 . 158 881 . . 150 . 249 Salvage Created 15944 | 8 1012 184 1158 1536 660 1283 447 996 84 916 740 1135 980 613 313 1636 454 37 816 562 374 Parts 786 | . 66 9 65 90 39 69 33 48 2 49 30 39 38 34 10 74 14 3 38 22 14 Haulers Intercepted 11 | . 1 . 2 3 2 . 2 . . . 1 . . . . . . . . . . Recyclers Shooed 9 | . 5 . . 1 . . . . . . . . 2 . 1 . . . . . . Parts Field Recycled . | . . . . . . . . . . . . . . . . . . . . . . Retrieved Matter . | . . . . . . . . . . . . . . . . . . . . . . Parts Self-Destructed . | . . . . . . . . . . . . . . . . . . . . . . Prevented . | . . . . . . . . . . . . . . . . . . . . . . Kills | -11 -10 -10 -9 -9 -8 -8 -7 -7 -7 -7 -6 -6 -6 -6 -5 -5 -5 -5 -5 -5 -4 ------- Run | Yrd Mat Min Mat Sto Mat Gar Fac Gar Fac Gar Fac Gar Fac Gar Fac Ext Cet Arc Hub Gar Fac Combat Hostiles Destroyed 297 | . 18 6 24 31 12 31 7 28 2 26 7 21 12 23 . 14 6 . 9 13 7 Guns 225 | . 16 6 23 28 11 26 4 20 . 12 2 13 9 12 . 12 6 . 9 9 7 Cannons 27 | . . . . . 1 . 3 2 2 10 3 3 1 . . 2 . . . . . AOE 42 | . 2 . 1 3 . 4 . 6 . 3 1 5 2 11 . . . . . 4 . Classes Destroyed 17 | 1 7 . 2 1 . 3 . . . . . 1 1 . 1 . . . . . . Worker 14 | 1 3 . 1 1 1 . 1 . . . . . 1 . . 2 . . 3 . . Builder 9 | . 2 . . 1 1 . 1 . . . 1 . . . . 1 . . 2 . . Tunneler 2 | . . . . . . . . . . . . . . . 1 . . . 1 . . Hauler 11 | . 1 . 2 3 2 . 2 . . . 1 . . . . . . . . . . Recycler 16 | . 2 . 1 . 1 . . . . . 2 . 4 . 2 4 . . . . . Operator 2 | . 1 . . . . . 1 . . . . . . . . . . . . . . Watcher 10 | . 1 . 2 . . 1 1 1 . . . . . . . 1 1 . 2 . . Swarmer 82 | . 2 3 8 3 4 7 4 15 . 13 . 4 . 10 . . . . . 5 4 Saboteur 1 | . . . . . . . . . . . . . 1 . . . . . . . . Grunt 100 | . 16 3 10 16 6 11 . 3 2 4 4 7 3 2 . 5 . . 2 5 1 Duelist 5 | . . . 1 . . 1 . . . 1 1 . 1 . . . . . . . . Protector 1 | . . . . 1 . . . . . . . . . . . . . . . . . Sentry 58 | . . . 5 11 2 5 1 5 . 2 . 8 3 4 . 6 . . 4 1 1 Specialist 4 | . . . . . . 4 . . . . . . . . . . . . . . . Hunter 20 | . . . . . . 2 . . . 3 2 . 2 3 . 2 . . 2 2 2 Programmer 19 | . . . . . . 1 2 5 . 3 . 1 2 4 . . . . 1 . . Behemoth 2 | . . . . . . . . . . . . 1 . . . 1 . . . . . Cetus Guard 6 | . . . . . . . . . . . . . . . . . 6 . . . . Best Kill Streak 11 | 1 8 4 7 5 4 5 4 8 2 7 4 8 3 11 1 6 4 . 11 4 4 Combat Bots Only 11 | . 6 4 3 4 4 5 4 8 2 7 4 8 2 11 . 3 4 . 6 4 4 Max Kills in Single Turn 5 | 1 2 1 2 4 2 2 1 2 1 3 1 3 2 5 1 2 1 . 3 3 2 Gunslinging 1 | . . . 1 . . 1 . 1 . . . . . 1 . . . . 1 . 1 Exploded 5 | . 1 . 1 2 . 2 . 2 . 3 1 3 2 5 . . . . . 3 . Melee . | . . . . . . . . . . . . . . . . . . . . . . Uniques/NPCs Destroyed . | . . . . . . . . . . . . . . . . . . . . . . Combat | -11 -10 -10 -9 -9 -8 -8 -7 -7 -7 -7 -6 -6 -6 -6 -5 -5 -5 -5 -5 -5 -4 -------- Run | Yrd Mat Min Mat Sto Mat Gar Fac Gar Fac Gar Fac Gar Fac Gar Fac Ext Cet Arc Hub Gar Fac Hostile Shots Fired 2227 | . 99 32 67 170 50 192 103 287 2 197 33 256 130 397 . 88 8 1 39 60 16 Missed 685 | . 22 7 15 43 12 58 37 93 1 65 9 94 45 120 . 29 3 1 11 18 2 Hits 1542 | . 77 25 52 127 38 134 66 194 1 132 24 162 85 277 . 59 5 . 28 42 14 Melee 11 | . . . 2 . . 2 . . . 3 . . . 4 . . . . . . . Projectile 1531 | . 77 25 50 127 38 132 66 194 1 129 24 162 85 273 . 59 5 . 28 42 14 AOE 4 | . . . . . . . . . . . . . . 1 . 3 . . . . . Critical Strikes 40 | . . 1 1 4 . 7 2 . . 6 1 1 5 6 . 1 1 . 3 . 1 Part Disruptions 1 | . . . . . . . . 1 . . . . . . . . . . . . . Damage Taken 19457 | . 956 318 694 1748 356 1824 659 1560 14 1754 536 1771 1277 3020 . 1168 153 . 579 814 256 Core 2188 | . 119 111 71 181 68 197 81 150 . 263 19 187 152 361 . 76 . . 41 80 31 Absorbed by Shields 1486 | . . . . . 141 168 137 472 5 85 . . . 112 . 341 25 . . . . Regen/Repaired (Parts) 177 | . . . . 98 79 . . . . . . . . . . . . . . . . Core Remaining (%) 45 | 100 . 8 . 37 . 51 . . . 29 . . . 15 . . . . . 80 . Volleys Fired 993 | . 95 15 58 125 35 79 31 74 3 57 24 63 67 43 10 75 19 2 31 69 18 Largest 4 | . 2 2 3 3 3 3 3 3 3 3 4 4 4 4 4 4 4 4 4 4 4 Hottest 198 | . 80 40 88 91 147 104 132 172 91 198 151 180 176 166 176 181 129 129 132 132 158 Shots Fired 2530 | . 187 30 173 301 99 227 78 183 9 149 57 181 148 123 22 198 76 8 89 136 56 Gun 2216 | . 187 30 173 290 88 222 63 146 6 100 43 142 105 119 12 152 76 8 79 125 50 Cannon 233 | . . . . 11 11 . 15 30 3 48 13 37 29 . 10 13 . . 8 . 5 Launcher 21 | . . . . . . 5 . 5 . 1 1 2 1 4 . . . . . 2 . Special 60 | . . . . . . . . 2 . . . . 13 . . 33 . . 2 9 1 Kinetic 1914 | . 83 30 134 262 57 201 58 111 9 54 37 159 117 100 12 152 76 8 79 125 50 Thermal 417 | . 76 . . . 42 21 20 65 . 94 7 20 17 19 10 13 . . 8 . 5 Explosive 21 | . . . . . . 5 . 5 . 1 1 2 1 4 . . . . . 2 . Electromagnetic 118 | . 28 . 39 39 . . . . . . 12 . . . . . . . . . . Robot Hit Streak 48 | . 16 7 12 11 16 20 10 28 3 25 14 48 19 11 10 38 12 6 17 9 12 Robot Miss Streak 10 | . 4 1 5 3 4 3 2 3 2 7 2 6 10 9 1 4 4 . 3 5 2 Penetration Max 1 | . . . . . . . 1 . . . 1 1 . . . 1 1 . 1 1 . Secondary Targets 47 | . 1 2 3 4 2 8 . 2 . 2 . 1 1 4 . 4 3 . 4 4 2 Max Gunslinging Chain 2 | . 1 1 1 1 1 1 . 1 . 1 . 1 1 1 . 1 1 . 2 1 1 Shots Hit Robots 1644 | . 127 22 118 206 63 164 43 108 5 87 42 112 101 70 9 144 54 5 62 71 31 Core Hits 915 | . 55 14 58 86 28 65 21 55 5 56 37 121 85 72 5 52 22 2 35 30 11 Critical Kills 12 | . 1 . . 1 . 3 . . . . . . . 2 . 1 . 1 2 1 . Critical Parts Destroyed 19 | . 1 . . 1 . 3 . . . . . . 1 2 . 5 1 1 1 1 2 Critical Strikes 47 | . 2 . . 2 2 8 1 3 . . . 1 1 6 . 6 4 2 4 2 3 Burn 9 | . . . . . 2 2 1 2 . . . . . 2 . . . . . . . Destroy 36 | . 2 . . 2 . 6 . . . . . . 1 4 . 6 4 2 4 2 3 Blast 2 | . . . . . . . . 1 . . . 1 . . . . . . . . . Melee Attacks 5 | . . . . 5 . . . . . . . . . . . . . . . . . Impact 5 | . . . . 5 . . . . . . . . . . . . . . . . . Slashing . | . . . . . . . . . . . . . . . . . . . . . . Piercing . | . . . . . . . . . . . . . . . . . . . . . . Sneak Attacks . | . . . . . . . . . . . . . . . . . . . . . . Combat Hostiles . | . . . . . . . . . . . . . . . . . . . . . . Follow-up Attacks . | . . . . . . . . . . . . . . . . . . . . . . Damage Inflicted 34340 | 4 1472 176 1609 2711 1062 2990 949 2587 95 2127 1329 3035 2379 2692 244 2942 1434 125 1774 1832 772 Guns 26072 | . 1309 176 1308 2286 921 2500 754 1715 43 1263 620 1882 1673 1370 107 2598 1434 125 1759 1457 772 Cannons 2743 | . . . . . 123 . 143 294 52 756 292 453 149 . 137 344 . . . . . Explosions 5253 | . 145 . 254 392 . 490 . 578 . 108 417 700 472 1322 . . . . . 375 . Melee . | . . . . . . . . . . . . . . . . . . . . . . Ramming 272 | 4 18 . 47 33 18 . 52 . . . . . 85 . . . . . 15 . . Kinetic 20931 | . 397 176 737 1726 512 2224 648 1005 95 449 414 1777 1455 1064 107 2598 1434 125 1759 1457 772 Thermal 7085 | . 729 . 254 392 532 276 249 1004 . 1570 265 558 469 306 137 344 . . . . . Explosive 4301 | . . . . . . 490 . 578 . 108 358 700 370 1322 . . . . . 375 . Electromagnetic 1751 | . 328 . 571 560 . . . . . . 292 . . . . . . . . . . Impact . | . . . . . . . . . . . . . . . . . . . . . . Slashing . | . . . . . . . . . . . . . . . . . . . . . . Piercing . | . . . . . . . . . . . . . . . . . . . . . . Highest Corruption 13 | . . . 5 5 . 1 1 7 9 13 3 7 11 12 . . . . 1 4 . Average Corruption 5 | . . . 5 5 . 1 1 4 8 9 3 6 8 9 . . . . 1 1 . Corruption Purged 7 | . . . . . . . . . . . . . . 7 . . . . . . . Corruption Blocked . | . . . . . . . . . . . . . . . . . . . . . . Effects 298 | . . . 13 68 . . 3 24 11 46 9 42 41 32 . . . . 2 7 . Message Errors 60 | . . . 3 15 . . . 5 5 10 2 8 5 5 . . . . . 2 . Matter Fused 72 | . . . 4 14 . . 2 5 3 13 1 8 11 7 . . . . . 4 . Heat Flow Errors 26 | . . . 2 6 . . . 2 . 4 1 4 4 2 . . . . 1 . . Energy Discharges 34 | . . . 2 6 . . . 3 1 6 2 7 3 4 . . . . . . . Parts Rejected 4 | . . . . 3 . . . . . . . . 1 . . . . . . . . Parts Fused 4 | . . . . 1 . . . . . . . . 2 1 . . . . . . . Data Loss (minor) 38 | . . . 1 7 . . . 5 . 6 . 8 4 6 . . . . 1 . . Data Loss (major) 14 | . . . 1 4 . . . 1 . . 1 2 2 2 . . . . . 1 . Misfires 11 | . . . . . . . . . 1 2 2 2 3 1 . . . . . . . Alerts 6 | . . . . 1 . . . 1 . 2 . 1 . 1 . . . . . . . Weapon Failures 29 | . . . . 11 . . 1 2 1 3 . 2 6 3 . . . . . . . Overload Shots . | . . . . . . . . . . . . . . . . . . . . . . Overflow Damage 192 | . . . . . 3 . . 63 . 26 . . 29 36 . . . . . 35 . Projectiles 56 | . . . . . . . . 30 . 26 . . . . . . . . . . . Explosions 104 | . . . . . . . . 33 . . . . . 36 . . . . . 35 . Melee 32 | . . . . . 3 . . . . . . . 29 . . . . . . . . Knockbacks 10 | . . . 1 1 . . 1 2 . . . 4 1 . . . . . . . . Impact 2 | . . . 1 1 . . . . . . . . . . . . . . . . . Kinetic 8 | . . . . . . . 1 2 . . . 4 1 . . . . . . . . Secondary . | . . . . . . . . . . . . . . . . . . . . . . Self-Inflicted Damage 479 | . 81 . 22 30 . 33 . 30 . 12 68 9 39 155 . . . . . . . Shots 18 | . 2 . 1 1 . 3 . 1 . 1 1 1 . 7 . . . . . . . Rammed 24 | . 1 . 4 6 1 . 6 . . . . . 4 . . . . . 2 . . Targets Rammed 28 | 1 2 . 5 7 1 . 6 . . . . . 4 . . . . . 2 . . Kicked . | . . . . . . . . . . . . . . . . . . . . . . Crushed 4 | 1 1 . 1 1 . . . . . . . . . . . . . . . . . Highest Temperature 383 | . 383 13 262 301 187 198 228 244 2 289 185 294 211 289 186 168 64 64 292 73 131 Average Temperature 72 | . 149 4 53 73 77 65 49 51 2 84 21 77 41 71 70 43 29 35 46 25 44 Received Heat Transfer 4656 | . 450 165 174 663 120 727 68 242 6 192 90 429 417 610 . 96 . . 72 135 . Effects 6 | . 2 . . 1 . . . . . . . 3 . . . . . . . . . Shutdowns 2 | . 2 . . . . . . . . . . . . . . . . . . . . Interference 4 | . . . . 1 . . . . . . . 3 . . . . . . . . . Siege Activations 1 | . . . . . . . . . . . . . . . . . . . . . 1 Total Turns 5 | . . . . . . . . . . . . . . . . . . . . . 5 Longest Duration 5 | . . . . . . . . . . . . . . . . . . . . . 5 Martial Activations . | . . . . . . . . . . . . . . . . . . . . . . Shielding Activations . | . . . . . . . . . . . . . . . . . . . . . . Robots Disrupted 2 | . . . 1 1 . . . . . . . . . . . . . . . . . Combat Hostiles 2 | . . . 1 1 . . . . . . . . . . . . . . . . . Robots Corrupted 2 | . . . . . . . . . . . 1 . 1 . . . . . . . . Combat Hostiles 1 | . . . . . . . . . . . 1 . . . . . . . . . . Parts Fried 13 | . 1 . 1 1 . . . . . . 6 . 1 . . 1 2 . . . . Impact Corruptions 3 | . . . . . 1 . . . . . . . 2 . . . . . . . . Robots Melted 2 | . . . . . . 1 . . . 1 . . . . . . . . . . . Combat Hostiles 2 | . . . . . . 1 . . . 1 . . . . . . . . . . . Parts Melted 25 | . 1 . . 1 2 5 2 3 . 8 . . 2 . . 1 . . . . . Heat Transferred 13111 | . 1375 . 150 462 1258 740 464 1928 . 2799 500 1261 875 781 148 370 . . . . . Parts Sabotaged . | . . . . . . . . . . . . . . . . . . . . . . Parts Stolen . | . . . . . . . . . . . . . . . . . . . . . . Parts Stripped . | . . . . . . . . . . . . . . . . . . . . . . Power Chain Reactions 12 | . 2 . 4 5 . . . . . . 1 . . . . . . . . . . Alert | -11 -10 -10 -9 -9 -8 -8 -7 -7 -7 -7 -6 -6 -6 -6 -5 -5 -5 -5 -5 -5 -4 ------- Run | Yrd Mat Min Mat Sto Mat Gar Fac Gar Fac Gar Fac Gar Fac Gar Fac Ext Cet Arc Hub Gar Fac Maximum Alert Level 4 | . . . 1 1 . 2 1 3 2 3 2 4 3 3 1 2 2 1 . 3 2 Low Security (%) 43 | 100 100 100 62 87 100 10 56 16 . . . . 21 . 9 56 . 81 100 40 . Level 1 26 | . . . 37 12 . 32 43 34 75 38 77 41 14 17 90 9 99 18 . . . Level 2 18 | . . . . . . 57 . 38 24 46 22 2 57 25 . 33 . . . 3 100 Level 3 10 | . . . . . . . . 10 . 14 . 42 5 56 . . . . . 55 . Level 4 . | . . . . . . . . . . . . 14 . . . . . . . . . Level 5 . | . . . . . . . . . . . . . . . . . . . . . . High Security . | . . . . . . . . . . . . . . . . . . . . . . Max Security . | . . . . . . . . . . . . . . . . . . . . . . Peak Influence 1385 | . 177 105 280 356 107 693 363 770 423 740 441 1385 721 769 399 623 408 229 179 1002 525 Initial 721 | . 3 21 9 115 65 66 363 12 403 219 388 219 721 264 399 86 294 142 72 . 525 Average 324 | . 82 48 161 162 45 455 160 391 374 503 354 744 480 639 275 235 320 146 64 515 469 Influence Increases 11726 | 5 596 165 726 973 382 727 254 848 80 641 258 1426 546 716 40 1209 304 197 422 1032 179 Destroy 0b10 Robot/C 6980 | . 360 120 480 620 240 620 140 560 40 520 140 740 320 480 . 600 160 80 200 455 105 Destroy 0b10 Robot/NC 365 | 5 50 . 30 30 25 5 30 5 . . 20 15 25 . 15 55 10 5 40 . . Destroy Leader 1000 | . 74 30 128 186 54 30 46 30 10 30 32 60 80 30 . 92 . . 54 10 24 Allied During Kill 921 | . . . . 1 . . . . . . . 192 13 2 . 347 99 46 1 216 4 Successful Hack 173 | . 16 . 8 13 15 . . 14 . . . 14 12 . 5 29 . . 18 25 4 Select Force Hacks 60 | . 60 . . . . . . . . . . . . . . . . . . . . Disable Machine 492 | . 15 . 30 60 15 . 30 15 15 . 60 15 45 15 . 30 15 15 60 45 12 Anti-Garrison Action 801 | . . . . . . 50 . 150 . . . 300 . 100 . . . . . 201 . Destroy Structure 589 | . 6 . 35 33 3 22 8 29 . 31 6 75 36 59 20 56 20 6 34 80 30 Lose Combat Pursuer 345 | . 15 15 15 30 30 . . 45 15 60 . 15 15 30 . . . 45 15 . . Influence Decreases 11280 | . 547 194 477 1091 436 136 929 96 537 214 684 365 1543 334 623 859 475 344 631 30 735 Entered New Map 3862 | . 2 33 16 159 91 36 330 6 367 94 352 95 654 114 361 91 233 214 137 . 477 Time Decay 4645 | . 475 150 431 642 335 . 440 . 170 . 302 . 434 . 262 360 222 30 194 . 198 Lost Part 901 | . 70 11 30 80 10 100 10 60 . 120 30 110 40 200 . 10 . . 10 10 . Lost Ally 794 | . . . . 60 . . . 30 . . . 160 40 20 . 280 20 100 4 20 60 Purge Threat 1078 | . . . . 150 . . 149 . . . . . 375 . . 118 . . 286 . . Squads Dispatched 43 | . 6 . 3 5 4 . 2 . . . 2 . 8 . 1 4 . . 6 . 2 Investigation 8 | . 3 . . . 1 . . . . . . . 2 . . . . . 1 . 1 Extermination 7 | . . . . . . . 2 . . . 1 . 2 . 1 . . . 1 . . Reinforcement 17 | . 3 . 3 3 1 . . . . . . . 2 . . 3 . . 1 . 1 Assault 4 | . . . . 2 . . . . . . . . 1 . . 1 . . . . . Garrison 7 | . . . . . 2 . . . . . 1 . 1 . . . . . 3 . . Intercept . | . . . . . . . . . . . . . . . . . . . . . . Searches Triggered . | . . . . . . . . . . . . . . . . . . . . . . Construction Impeded 3 | . . . 1 . . . . . . . . . . . . 2 . . . . . Haulers Reinforced . | . . . . . . . . . . . . . . . . . . . . . . Active Scanning Responses . | . . . . . . . . . . . . . . . . . . . . . . Cargo Convoy Interrupts . | . . . . . . . . . . . . . . . . . . . . . . Stealth | -11 -10 -10 -9 -9 -8 -8 -7 -7 -7 -7 -6 -6 -6 -6 -5 -5 -5 -5 -5 -5 -4 --------- Run | Yrd Mat Min Mat Sto Mat Gar Fac Gar Fac Gar Fac Gar Fac Gar Fac Ext Cet Arc Hub Gar Fac Distress Signals 21 | . 3 . 2 6 2 2 . 2 . . . . . . . 2 2 . . . . Communications Jammed . | . . . . . . . . . . . . . . . . . . . . . . Distress Signals . | . . . . . . . . . . . . . . . . . . . . . . Times Spotted 470 | . 37 7 32 71 16 35 13 32 3 28 12 34 27 25 . 38 11 2 14 25 8 Peak Tracking Total 12 | . 5 5 5 10 5 5 4 5 3 6 5 12 5 11 . 7 5 7 4 6 4 Tactical Retreats 17 | . 1 1 1 1 2 . . 2 1 3 . 1 1 1 . . . 1 1 . . Traps | -11 -10 -10 -9 -9 -8 -8 -7 -7 -7 -7 -6 -6 -6 -6 -5 -5 -5 -5 -5 -5 -4 ------- Run | Yrd Mat Min Mat Sto Mat Gar Fac Gar Fac Gar Fac Gar Fac Gar Fac Ext Cet Arc Hub Gar Fac Traps Triggered 49 | . . . 1 3 1 4 2 1 2 8 1 9 2 3 . 3 . . 1 1 7 Indirectly . | . . . . . . . . . . . . . . . . . . . . . . Trap Hack Attempts . | . . . . . . . . . . . . . . . . . . . . . . Triggered . | . . . . . . . . . . . . . . . . . . . . . . Disarmed . | . . . . . . . . . . . . . . . . . . . . . . Reprogrammed . | . . . . . . . . . . . . . . . . . . . . . . Reused . | . . . . . . . . . . . . . . . . . . . . . . Traps Extracted . | . . . . . . . . . . . . . . . . . . . . . . Installed . | . . . . . . . . . . . . . . . . . . . . . . Triggered . | . . . . . . . . . . . . . . . . . . . . . . Machines | -11 -10 -10 -9 -9 -8 -8 -7 -7 -7 -7 -6 -6 -6 -6 -5 -5 -5 -5 -5 -5 -4 ---------- Run | Yrd Mat Min Mat Sto Mat Gar Fac Gar Fac Gar Fac Gar Fac Gar Fac Ext Cet Arc Hub Gar Fac Machines Disabled 46 | . 1 . 2 4 1 1 2 2 1 . 4 5 3 3 . 2 3 1 4 6 1 Max in Single Turn 2 | . 1 . 1 1 1 1 1 1 1 . 2 1 2 1 . 1 2 1 1 1 1 Garrison Relay 11 | . . . . . . 1 . 1 . . . 4 . 2 . . . . . 3 . Network Hub 1 | . . . . . . . . . . . . . . . . . . . 1 . . Energy Cycler 1 | . . . . . . . . . . . . . . . . 1 . . . . . Machines Repaired . | . . . . . . . . . . . . . . . . . . . . . . Machines Dismantled 3 | . . . . . 1 . . . . . . . . . . . 1 . 1 . . Machines Sabotaged . | . . . . . . . . . . . . . . . . . . . . . . Overloaded Fab Kills . | . . . . . . . . . . . . . . . . . . . . . . Hacking | -11 -10 -10 -9 -9 -8 -8 -7 -7 -7 -7 -6 -6 -6 -6 -5 -5 -5 -5 -5 -5 -4 --------- Run | Yrd Mat Min Mat Sto Mat Gar Fac Gar Fac Gar Fac Gar Fac Gar Fac Ext Cet Arc Hub Gar Fac Machines Accessed 66 | . 6 . 6 7 6 2 4 1 4 1 1 1 6 . 3 9 . . 4 2 3 Terminals 52 | . 4 . 6 6 4 2 3 1 1 1 . 1 4 . 2 9 . . 3 2 3 Fabricators 2 | . . . . . . . . . 1 . . . 1 . . . . . . . . Repair Stations 2 | . . . . 1 1 . . . . . . . . . . . . . . . . Recycling Units 4 | . 2 . . . . . . . 1 . . . . . 1 . . . . . . Scanalyzers . | . . . . . . . . . . . . . . . . . . . . . . Garrison Access 6 | . . . . . 1 . 1 . 1 . 1 . 1 . . . . . 1 . . Total Hacks 147 | . 16 . 12 14 18 2 14 1 5 2 1 1 14 . 3 21 . . 11 3 9 Successful 77 | . 8 . 6 8 11 . 6 1 1 . 1 1 5 . 2 16 . . 6 2 3 Failed 70 | . 8 . 6 6 7 2 8 . 4 2 . . 9 . 1 5 . . 5 1 6 Catastrophic 15 | . . . . 3 . 2 3 . 1 . . . 1 . . 2 . . . . 3 Database Lockouts . | . . . . . . . . . . . . . . . . . . . . . . Manual 77 | . 11 . 10 10 10 . 13 . 1 . . . . . . 11 1 . 5 . 5 Terminals 129 | . 14 . 12 12 15 2 13 1 1 2 . 1 11 . 2 21 . . 10 3 9 Fabricators 4 | . . . . . . . . . 2 . . . 2 . . . . . . . . Repair Stations 4 | . . . . 2 2 . . . . . . . . . . . . . . . . Recycling Units 4 | . 2 . . . . . . . 1 . . . . . 1 . . . . . . Scanalyzers . | . . . . . . . . . . . . . . . . . . . . . . Garrison Access 6 | . . . . . 1 . 1 . 1 . 1 . 1 . . . . . 1 . . Terminal Hacks 30 | . 1 . 1 3 2 . 3 1 . . . 1 2 . 1 8 . . 3 2 2 Part Schematic 1 | . . . . . . . 1 . . . . . . . . . . . . . . Prototype ID Bank 1 | . . . . . . . . . . . . . . . . 1 . . . . . Open Door 5 | . . . . 1 . . . . . . . . . . . 4 . . . . . Emergency Access Points 3 | . . . . . . . . . . . . 1 . . . . . . . 1 1 Terminal Index 1 | . . . . . . . . . . . . . . . . 1 . . . . . Alert Level 1 | . . . . . 1 . . . . . . . . . . . . . . . . Unreport Threat 5 | . . . . 1 . . 1 . . . . . . . . 1 . . 2 . . Locate Traps 2 | . 1 . . . . . . . . . . . . . . 1 . . . . . Hauler Manifests 1 | . . . 1 . . . . . . . . . . . . . . . . . . Zone Layout 8 | . . . . 1 1 . 1 . . . . . 2 . 1 . . . 1 . 1 Garrison Registry 2 | . . . . . . . . 1 . . . . . . . . . . . 1 . Fabricator Hacks 2 | . . . . . . . . . . . . . 2 . . . . . . . . Load Schematic 1 | . . . . . . . . . . . . . 1 . . . . . . . . Build 1 | . . . . . . . . . . . . . 1 . . . . . . . . Repair Station Hacks 4 | . . . . 2 2 . . . . . . . . . . . . . . . . Scan Component 2 | . . . . 1 1 . . . . . . . . . . . . . . . . Repair 2 | . . . . 1 1 . . . . . . . . . . . . . . . . Recycling Unit Hacks 1 | . . . . . . . . . . . . . . . 1 . . . . . . Retrieve Components 1 | . . . . . . . . . . . . . . . 1 . . . . . . Scanalyzer . | . . . . . . . . . . . . . . . . . . . . . . Garrison Access Hacks 6 | . . . . . 1 . 1 . 1 . 1 . 1 . . . . . 1 . . Unlock Access 6 | . . . . . 1 . 1 . 1 . 1 . 1 . . . . . 1 . . Unauthorized Hacks 34 | . 7 . 5 3 6 . 2 . . . . . . . . 8 . . 2 . 1 Terminals 32 | . 5 . 5 3 6 . 2 . . . . . . . . 8 . . 2 . 1 Track 1 | . . . . . . . 1 . . . . . . . . . . . . . . Botnet 9 | . 1 . . . 2 . 1 . . . . . . . . 3 . . 1 . 1 Operators 1 | . . . . . . . . . . . . . . . . 1 . . . . . Skim 20 | . 4 . 5 3 4 . . . . . . . . . . 4 . . . . . Sabotage 1 | . . . . . . . . . . . . . . . . . . . 1 . . Fabricators . | . . . . . . . . . . . . . . . . . . . . . . Repair Stations . | . . . . . . . . . . . . . . . . . . . . . . Recycling Units 2 | . 2 . . . . . . . . . . . . . . . . . . . . Tunnel 2 | . 2 . . . . . . . . . . . . . . . . . . . . Scanalyzers . | . . . . . . . . . . . . . . . . . . . . . . Garrison Access . | . . . . . . . . . . . . . . . . . . . . . . Data Cores Recovered 1 | . . . . . . . 1 . . . . . . . . . . . . . . Used 1 | . . . . . . . 1 . . . . . . . . . . . . . . Hacking Detections 47 | . 4 . 4 4 3 2 3 . 4 1 1 1 5 . 2 6 . . 2 2 3 Full Trace Events 3 | . . . . . 1 . . . . . . . 2 . . . . . . . . Feedback Events . | . . . . . . . . . . . . . . . . . . . . . . Feedback Blocked . | . . . . . . . . . . . . . . . . . . . . . . Robot Schematics Acquired . | . . . . . . . . . . . . . . . . . . . . . . Robots Built . | . . . . . . . . . . . . . . . . . . . . . . Authchips . | . . . . . . . . . . . . . . . . . . . . . . Time . | . . . . . . . . . . . . . . . . . . . . . . Total Robot Build Rating . | . . . . . . . . . . . . . . . . . . . . . . Part Schematics Acquired 1 | . . . . . . . 1 . . . . . . . . . . . . . . Parts Built 1 | . . . . . . . . . . . . . 1 . . . . . . . . Authchips . | . . . . . . . . . . . . . . . . . . . . . . Time 25 | . . . . . . . . . . . . . 25 . . . . . . . . Total Part Build Rating 1 | . . . . . . . . . . . . . 1 . . . . . . . . Parts Repaired 2 | . . . . 1 1 . . . . . . . . . . . . . . . . Time 64 | . . . . 32 32 . . . . . . . . . . . . . . . . Parts Recycled . | . . . . . . . . . . . . . . . . . . . . . . Recycled Matter . | . . . . . . . . . . . . . . . . . . . . . . Retrieved Matter . | . . . . . . . . . . . . . . . . . . . . . . Retrieved Components 3 | . . . . . . . . . . . . . . . 3 . . . . . . Parts Scanalyzed . | . . . . . . . . . . . . . . . . . . . . . . Part Schematics Acquired . | . . . . . . . . . . . . . . . . . . . . . . Parts Damaged . | . . . . . . . . . . . . . . . . . . . . . . Bothacking | -11 -10 -10 -9 -9 -8 -8 -7 -7 -7 -7 -6 -6 -6 -6 -5 -5 -5 -5 -5 -5 -4 ------------ Run | Yrd Mat Min Mat Sto Mat Gar Fac Gar Fac Gar Fac Gar Fac Gar Fac Ext Cet Arc Hub Gar Fac Used RIF Installer 8 | . . . . . . 1 . 2 . 1 . 1 . 1 . . . . . 2 . Coupler Efficiency 3 | . . . . . . . . . . 1 . 1 . 1 . . . . . . . Hotswap 1 | . . . . . . . . . . . . . . . . . . . . 1 . Threat Obfuscator 1 | . . . . . . . . . . . . . . . . . . . . 1 . Robot Detection 1 | . . . . . . . . 1 . . . . . . . . . . . . . Program Shield 1 | . . . . . . . . 1 . . . . . . . . . . . . . Robots Hacked 14 | . . . . . . . . 1 . . . . 4 . . 5 . . 2 2 . Non-combat 2 | . . . . . . . . 1 . . . . 1 . . . . . . . . Combat 12 | . . . . . . . . . . . . . 3 . . 5 . . 2 2 . Robot Hacks Applied 19 | . . . . . . . . 1 . . . . 9 . . 5 . . 2 2 . purge_threat 3 | . . . . . . . . . . . . . 3 . . . . . . . . locate_traps 1 | . . . . . . . . . . . . . 1 . . . . . . . . find_garrison 1 | . . . . . . . . . . . . . 1 . . . . . . . . disrupt_area 1 | . . . . . . . . . . . . . . . . 1 . . . . . amplify_resonance 5 | . . . . . . . . . . . . . 1 . . 2 . . . 2 . overwrite_iff 4 | . . . . . . . . . . . . . 2 . . 1 . . 1 . . formatsys_low 1 | . . . . . . . . 1 . . . . . . . . . . . . . formatsys_high 3 | . . . . . . . . . . . . . 1 . . 1 . . 1 . . Relay Couplers Released 45 | . . . . . . 7 . 4 . . . 14 . 8 . . . . . 12 . Machine Destruction 42 | . . . . . . 4 . 4 . . . 14 . 8 . . . . . 12 . Programmers 3 | . . . . . . 3 . . . . . . . . . . . . . . . Attached 6 | . . . . . . . . 1 . . . 1 1 1 . 2 . . . . . Fabnet Peak Effective % . | . . . . . . . . . . . . . . . . . . . . . . Robots Rewired 24 | . . . . 1 . . . . . . . 9 . . . 9 . . . 5 . Allies Hacked . | . . . . . . . . . . . . . . . . . . . . . . Hacks Repelled . | . . . . . . . . . . . . . . . . . . . . . . Allies | -11 -10 -10 -9 -9 -8 -8 -7 -7 -7 -7 -6 -6 -6 -6 -5 -5 -5 -5 -5 -5 -4 -------- Run | Yrd Mat Min Mat Sto Mat Gar Fac Gar Fac Gar Fac Gar Fac Gar Fac Ext Cet Arc Hub Gar Fac Total Allies 46 | . . . . 3 . . . 2 . . . 9 3 . . 17 5 . 2 5 . Largest Group 10 | . . . . 2 . . . 1 . . . 7 1 1 . 10 6 6 1 5 4 Highest-Rated Group 610 | . . . . 62 . . . 23 . . . 280 29 29 . 433 610 607 29 285 176 Highest-Rated Ally 159 | . . . . 31 . . . 23 . . . 99 29 29 . 159 152 127 29 99 89 Total Orders 14 | . . . . . . . . . . . . 2 . . . . . . . 12 . STAY 8 | . . . . . . . . . . . . 1 . . . . . . . 7 . FOLLOW 6 | . . . . . . . . . . . . 1 . . . . . . . 5 . Ally Attacks 369 | . . . . 17 . . . 2 . . . 80 14 3 . 132 42 22 2 40 15 Total Damage 8975 | . . . . 260 . . . 78 . . . 2331 151 37 . 2675 1319 908 38 917 261 Kills 60 | . . . . 1 . . . . . . . 17 4 1 . 19 3 4 1 10 . Allies Corrupted 1 | . . . . . . . . . . . . . . . . . . . . 1 . Allies Melted 4 | . . . . . . . . . . . . 1 . . . . . 3 . . . Intel | -11 -10 -10 -9 -9 -8 -8 -7 -7 -7 -7 -6 -6 -6 -6 -5 -5 -5 -5 -5 -5 -4 ------- Run | Yrd Mat Min Mat Sto Mat Gar Fac Gar Fac Gar Fac Gar Fac Gar Fac Ext Cet Arc Hub Gar Fac Active Infowar (turns) 1587 | . . . . . . . 823 190 . . . . 4 . . . 1 . 139 56 374 Optics 5 | . . . . . . . . . . . . . 4 . . . 1 . . . . Seismic 1582 | . . . . . . . 823 190 . . . . . . . . . . 139 56 374 Robot Analysis Total . | . . . . . . . . . . . . . . . . . . . . . . Derelict Logs Recovered 1 | . . 1 . . . . . . . . . . . . . . . . . . . Drone Launches . | . . . . . . . . . . . . . . . . . . . . . . Drone Recoveries . | . . . . . . . . . . . . . . . . . . . . . . Exploration | -11 -10 -10 -9 -9 -8 -8 -7 -7 -7 -7 -6 -6 -6 -6 -5 -5 -5 -5 -5 -5 -4 ------------- Run | Yrd Mat Min Mat Sto Mat Gar Fac Gar Fac Gar Fac Gar Fac Gar Fac Ext Cet Arc Hub Gar Fac Turns Passed 19768 | 113 1337 309 1258 2317 827 1160 1160 1347 346 1137 670 1319 1068 781 574 1353 470 76 499 1237 410 Spaces Moved 8718 | 65 522 148 554 860 365 507 609 572 207 420 243 666 534 242 202 680 181 44 241 651 205 Core 4 | 4 . . . . . . . . . . . . . . . . . . . . . Treads 6636 | 61 314 68 554 860 365 507 609 572 207 420 217 . . 173 136 251 181 44 241 651 205 Legs . | . . . . . . . . . . . . . . . . . . . . . . Wheels 2078 | . 208 80 . . . . . . . . 26 666 534 69 66 429 . . . . . Hover . | . . . . . . . . . . . . . . . . . . . . . . Flight . | . . . . . . . . . . . . . . . . . . . . . . Fastest Speed 50 | 50 130 130 160 160 160 160 160 160 160 160 130 125 120 155 145 145 160 160 160 160 160 Average Speed 175 | 153 186 180 181 208 160 170 160 186 160 210 232 129 139 239 258 157 160 160 160 160 160 Slowest Speed 560 | 160 240 240 240 240 160 240 160 240 160 240 245 180 155 312 312 560 160 160 160 160 160 Overloaded Moves . | . . . . . . . . . . . . . . . . . . . . . . Propulsion Burnouts . | . . . . . . . . . . . . . . . . . . . . . . Robots Hopped . | . . . . . . . . . . . . . . . . . . . . . . Potential Cave-ins . | . . . . . . . . . . . . . . . . . . . . . . Cave-ins Triggered . | . . . . . . . . . . . . . . . . . . . . . . Exploration Rate (%) 43 | 3 91 33 46 93 36 47 21 70 6 45 11 75 20 42 6 87 66 72 31 54 9 Regions Visited 21 Branch Regions 6 Pre-discovered Areas 3 | . 2 . 1 . . . . . . . . . . . . . . . . . . Known Exits Taken 8 | . . . 1 1 1 . 1 . 1 . 1 . 1 . . . . . 1 . . Unknown Exits Taken 7 | 1 1 1 . . . . . . . . . . . . 1 1 1 1 . . . Scrap Searched 1 | . . 1 . . . . . . . . . . . . . . . . . . . Spaces Dug 30 | . . . . 1 . . 5 . . . 1 . 5 . 3 . . . 5 6 4 Terrain Destroyed 332 | . 4 . 46 28 . 19 8 9 . 3 5 12 46 27 13 37 7 3 16 31 18 Melee 1 | . . . . 1 . . . . . . . . . . . . . . . . . Projectile 139 | . . . . . . 1 8 . . 2 1 1 16 3 13 36 7 3 16 14 18 AOE 188 | . 4 . 46 27 . 18 . 9 . 1 4 11 30 23 . . . . . 15 . Terrain Rammed . | . . . . . . . . . . . . . . . . . . . . . . Walls Destroyed . | . . . . . . . . . . . . . . . . . . . . . . Machines Disabled . | . . . . . . . . . . . . . . . . . . . . . . Actions | -11 -10 -10 -9 -9 -8 -8 -7 -7 -7 -7 -6 -6 -6 -6 -5 -5 -5 -5 -5 -5 -4 --------- Run | Yrd Mat Min Mat Sto Mat Gar Fac Gar Fac Gar Fac Gar Fac Gar Fac Ext Cet Arc Hub Gar Fac Total 11440 | 75 710 167 702 1157 527 642 737 723 215 554 308 1007 736 356 239 880 323 47 302 779 254 Wait 621 | . 58 . 40 93 96 8 36 26 . 31 11 35 58 11 . 6 85 . 6 16 5 Move 8703 | 65 521 147 553 859 365 506 609 571 207 419 243 664 534 241 201 679 180 43 241 650 205 Hop . | . . . . . . . . . . . . . . . . . . . . . . Pick Up 223 | 4 19 1 17 17 4 13 12 9 3 8 7 22 20 17 6 25 8 1 3 6 1 Fast Attach 103 | 6 2 . 6 7 2 3 7 4 1 7 5 8 6 3 7 4 4 . 2 7 12 Attach 118 | . 7 3 4 9 3 9 5 9 1 7 7 9 6 21 6 3 1 . 1 5 2 Detach 37 | . 1 1 1 1 1 1 3 3 . 2 2 . 4 6 6 1 1 . . 1 2 Swap 172 | . 4 . 3 14 10 11 9 13 . 5 5 8 27 6 1 29 3 . 9 8 7 Drop 199 | . 1 . 15 18 6 8 19 14 . 7 4 24 11 5 2 34 14 1 4 10 2 Fire 993 | . 95 15 58 125 35 79 31 74 3 57 24 63 67 43 10 75 19 2 31 69 18 Melee 5 | . . . . 5 . . . . . . . . . . . . . . . . . Ram 4 | . 1 . . . . . . . . . . . 3 . . . . . . . . Kick . | . . . . . . . . . . . . . . . . . . . . . . Crush 22 | . 1 . 5 7 1 . 6 . . . . . . . . . . . 2 . . Escape Stasis 114 | . . . . . . 4 . . . 11 . 72 . 3 . 24 . . . . . Rewire 111 | . . . . 2 . . . . . . . 102 . . . . . . . 7 . Trap . | . . . . . . . . . . . . . . . . . . . . . . Miscellaneous 15 | . . . . . 4 . . . . . . . . . . . 8 . 3 . . Route ------- -11/Scrapyard -10/Materials (discovered 4 exits: *Mat x3 / [*Min]) -10/Mines -9/Materials (discovered 6 exits: *Mat x3 / Min / *Sto x2) -9/Storage (discovered 2 exits: *Mat / Rec) -8/Materials (discovered 2 exits: Fac / Gar) -8/Garrison (discovered 3 exits: *Fac x2 / [*Mat]) -7/Factory (discovered 3 exits: *Fac x2 / Gar) -7/Garrison (discovered 4 exits: *Fac x4) -7/Factory -7/Garrison (discovered 2 exits: *Fac x2) -6/Factory -6/Garrison (discovered 4 exits: *Fac x4) -6/Factory (discovered 3 exits: *Fac / [*Low] / Gar) -6/Garrison -5/Factory -5/Extension (discovered 3 exits: *Fac x2 / *Cet) -5/Cetus (discovered 2 exits: *Fac / [*Arc]) -5/Archives -5/Hub_04(d) -5/Garrison (discovered 3 exits: *Fac x3) -4/Factory (discovered 1 exit: [*Res]) History --------- Turn | Location | Event 87 | -11/Scrapyard | Discovered new exit (range 16) 114 | -11/Scrapyard | Entered Materials 330 | -10/Materials | Build established: Mutant 439 | -10/Materials | Discovered new exit (range 10) 747 | -10/Materials | Discovered new exit (range 15) 800 | -10/Materials | Discovered new exit (range 13) 1065 | -10/Materials | Discovered new exit (range 16) 1451 | -10/Materials | Entered Mines 1454 | -10/Mines | Build established: Scavenger-Mutant 1454 | -10/Mines | Core integrity fell below 50% 1514 | -10/Mines | Learned 4 Materials zone layouts 1589 | -10/Mines | Core integrity fell below 20% 1697 | -10/Mines | Discovered new exit (range 9) 1760 | -10/Mines | Entered Materials 1760 | -9/Materials | Evolved 2 slots: Propulsion x1, Weapon x1 1761 | -9/Materials | Identified exit to Storage 1761 | -9/Materials | Identified exit to Materials 1762 | -9/Materials | Discovered exit to Storage (range 9) 2181 | -9/Materials | Discovered exit to Materials (range 3) 2629 | -9/Materials | Learned 4 Recycling zone layouts 2674 | -9/Materials | Learned location of 1 exit from Storage 2710 | -9/Materials | Learned location of Zion (-7) 2723 | -9/Materials | Build established: Gunner 2738 | -9/Materials | Learned 4 Recycling zone layouts 2755 | -9/Materials | Identified exit to Mines 2755 | -9/Materials | Learned location of 1 exit from Materials 2763 | -9/Materials | Learned Storage security intel 2772 | -9/Materials | Learned location of 1 exit from Storage 2790 | -9/Materials | Learned Materials stockpile data 3018 | -9/Materials | Entered Storage 3019 | -9/Storage | Identified exit to Recycling 3026 | -9/Storage | Build established: Tank 3292 | -9/Storage | Repaired Med. Armor Plating 3627 | -9/Storage | Core integrity fell below 50% 3732 | -9/Storage | Met a pair of Derelict thieves 4148 | -9/Storage | Build established: Mutant 4604 | -9/Storage | Build established: Tank 5175 | -9/Storage | Build established: Scavenger-Tank 5335 | -9/Storage | Entered Materials 5335 | -8/Materials | Evolved 2 slots: Propulsion x1, Utility x1 5336 | -8/Materials | Identified exit to Factory 5800 | -8/Materials | Repaired Med. Armor Plating 5984 | -8/Materials | Garrison activated, responded to threat 6061 | -8/Materials | Met 7R-MNS 6112 | -8/Materials | Garrison activated, responded to threat 6162 | -8/Materials | Identified exit to Garrison 6162 | -8/Materials | Entered Garrison 6180 | -8/Garrison | Triggered checkpoint 6205 | -8/Garrison | Installed Relay Interface Framework 6272 | -8/Garrison | Triggered checkpoint 6279 | -8/Garrison | Garrison Relay disabled 6338 | -8/Garrison | Triggered checkpoint 6431 | -8/Garrison | Discovered new exit (range 5) 6440 | -8/Garrison | Lost 5 parts (2n2u1w) 6555 | -8/Garrison | Triggered checkpoint 6685 | -8/Garrison | Discovered exit to Factory (range 8) 6702 | -8/Garrison | Triggered checkpoint 6763 | -8/Garrison | Triggered checkpoint 6858 | -8/Garrison | Triggered checkpoint 6907 | -8/Garrison | Lost 3 parts (2n1u) 7175 | -8/Garrison | Discovered exit to Factory (range 10) 7245 | -8/Garrison | Spotted B-75 Beast 7256 | -8/Garrison | Build established: Scavenger-Gunner 7322 | -8/Garrison | Entered Factory 7322 | -7/Factory | Evolved 2 slots: Utility x2 7631 | -7/Factory | Allied Derelicts emerged from ambush trap array 7901 | -7/Factory | Discovered new exit (range 10) 7920 | -7/Factory | Discovered new exit (range 5) 8110 | -7/Factory | Found Prototype Launcher 8110 | -7/Factory | Identified Rocket Array 8482 | -7/Factory | Identified exit to Garrison 8482 | -7/Factory | Entered Garrison 8556 | -7/Garrison | Triggered checkpoint 8634 | -7/Garrison | Triggered checkpoint 8699 | -7/Garrison | Destroyed 8 combat bots 8776 | -7/Garrison | Triggered checkpoint 8849 | -7/Garrison | Garrison Relay disabled 8874 | -7/Garrison | Rescued a captive Derelict 8876 | -7/Garrison | Rescued a captive Derelict 8968 | -7/Garrison | Build established: Scavenger-Tank 9049 | -7/Garrison | Discovered new exit (range 12) 9335 | -7/Garrison | Triggered checkpoint 9470 | -7/Garrison | Expanded RIF knowledge: Program Shield 9495 | -7/Garrison | Discovered new exit (range 8) 9532 | -7/Garrison | Discovered new exit (range 11) 9532 | -7/Garrison | Discovered new exit (range 68) 9532 | -7/Garrison | Discovered new exit (range 59) 9532 | -7/Garrison | Discovered new exit (range 35) 9618 | -7/Garrison | Triggered checkpoint 9771 | -7/Garrison | Expanded RIF knowledge: Robot Detection 9829 | -7/Garrison | Entered Factory 10175 | -7/Factory | Identified exit to Garrison 10175 | -7/Factory | Entered Garrison 10305 | -7/Garrison | Lost 3 parts (2n1u) 10319 | -7/Garrison | Triggered checkpoint 10515 | -7/Garrison | Triggered checkpoint 10565 | -7/Garrison | Triggered checkpoint 10585 | -7/Garrison | Lost 3 parts (3n) 10655 | -7/Garrison | Destroyed 7 combat bots 10689 | -7/Garrison | Discovered new exit (range 10) 10733 | -7/Garrison | Triggered checkpoint 10743 | -7/Garrison | Core integrity fell below 50% 10921 | -7/Garrison | Build established: Scavenger-Gunner 11043 | -7/Garrison | System corruption reached 10% 11203 | -7/Garrison | Discovered new exit (range 11) 11229 | -7/Garrison | Expanded RIF knowledge: Coupler Efficiency 11312 | -7/Garrison | Entered Factory 11312 | -6/Factory | Evolved 2 slots: Utility x1, Weapon x1 11470 | -6/Factory | Lost 3 parts (1n1u1w) 11907 | -6/Factory | Garrison activated, responded to threat 11982 | -6/Factory | Identified exit to Garrison 11982 | -6/Factory | Entered Garrison 12101 | -6/Garrison | Triggered checkpoint 12212 | -6/Garrison | Destroyed 8 combat bots 12219 | -6/Garrison | Lost 7 parts (1p1n1u4w) 12252 | -6/Garrison | Expanded RIF knowledge: Coupler Efficiency 12353 | -6/Garrison | Garrison Relay disabled 12520 | -6/Garrison | Triggered checkpoint 12530 | -6/Garrison | Triggered checkpoint 12532 | -6/Garrison | Spotted B-75 Beast 12537 | -6/Garrison | Triggered checkpoint 12558 | -6/Garrison | Destroyed B-75 Beast 12558 | -6/Garrison | Triggered checkpoint 12572 | -6/Garrison | Lost 3 allies 12586 | -6/Garrison | Lost 3 parts (2n1u) 12595 | -6/Garrison | Destroyed 7 combat bots 12621 | -6/Garrison | Discovered new exit (range 15) 12676 | -6/Garrison | Triggered checkpoint 12715 | -6/Garrison | Garrison Relay disabled 12878 | -6/Garrison | Garrison Relay disabled 12926 | -6/Garrison | Discovered new exit (range 12) 12954 | -6/Garrison | Rewired Striker 12983 | -6/Garrison | Rewired Striker 13110 | -6/Garrison | Triggered checkpoint 13151 | -6/Garrison | Garrison Relay disabled 13175 | -6/Garrison | Discovered new exit (range 8) 13196 | -6/Garrison | Triggered checkpoint 13264 | -6/Garrison | Lost 4 allies 13277 | -6/Garrison | Discovered new exit (range 6) 13301 | -6/Garrison | Entered Factory 13586 | -6/Factory | Discovered new exit (range 6) 13609 | -6/Factory | Discovered new exit (range 9) 13651 | -6/Factory | First assault squad dispatched 13660 | -6/Factory | Fabricated Huge Storage Unit (x1) 13901 | -6/Factory | System corruption reached 10% 14359 | -6/Factory | Identified exit to Garrison 14366 | -6/Factory | Garrison activated, responded to threat 14369 | -6/Factory | Entered Garrison 14369 | -6/Garrison | Accompanied by 1 ally 14401 | -6/Garrison | Triggered checkpoint 14452 | -6/Garrison | Garrison Relay disabled 14502 | -6/Garrison | Triggered checkpoint 14558 | -6/Garrison | Lost 9 parts (1p4n1u3w) 14571 | -6/Garrison | Destroyed 11 combat bots 14641 | -6/Garrison | Triggered checkpoint 14642 | -6/Garrison | Core integrity fell below 50% 14643 | -6/Garrison | Triggered checkpoint 14816 | -6/Garrison | Triggered checkpoint 14868 | -6/Garrison | Core integrity fell below 20% 14913 | -6/Garrison | Lost 10 parts (1p4n2u3w) 14964 | -6/Garrison | Garrison Relay disabled 15058 | -6/Garrison | Discovered new exit (range 14) 15126 | -6/Garrison | Expanded RIF knowledge: Coupler Efficiency 15150 | -6/Garrison | Entered Factory 15150 | -5/Factory | Evolved 2 slots: Propulsion x1, Utility x1 15656 | -5/Factory | Build established: Bothacker-Tank 15659 | -5/Factory | Discovered new exit (range 16) 15724 | -5/Factory | Entered Extension 15826 | -5/Extension | Rescued a captive Derelict 15827 | -5/Extension | Rescued a captive Derelict 15884 | -5/Extension | Rescued A7 15915 | -5/Extension | Rescued a captive Derelict 15941 | -5/Extension | Energy Cycler disabled 15941 | -5/Extension | Rescued a captive Derelict 15941 | -5/Extension | Rescued a captive Derelict 15942 | -5/Extension | Rescued a captive Derelict 15942 | -5/Extension | Rescued a captive Derelict 15942 | -5/Extension | Rescued a captive Derelict 15944 | -5/Extension | Rescued a captive Derelict 15949 | -5/Extension | Rescued a captive Derelict 15952 | -5/Extension | Rescued a captive Derelict 16150 | -5/Extension | Build established: Scavenger-Tank 16491 | -5/Extension | Spotted B-75 Beast 16493 | -5/Extension | Assimilated Beast 6a with formatsys_high 16506 | -5/Extension | Discovered new exit (range 16) 16508 | -5/Extension | Spotted B-75 Beast 16526 | -5/Extension | Destroyed B-75 Beast 16558 | -5/Extension | Lost 4 allies 16739 | -5/Extension | Build established: Scavenger-Gunner 16924 | -5/Extension | First assault squad dispatched 16988 | -5/Extension | Lost 7 allies 17021 | -5/Extension | Discovered new exit (range 10) 17022 | -5/Extension | Discovered new exit (range 6) 17077 | -5/Extension | Entered Cetus 17077 | -5/Cetus | Accompanied by 2 allies (A7) 17082 | -5/Cetus | Acquired a Cetus Manufacturing Module code from A7 17097 | -5/Cetus | Spotted Cetus Guard 17097 | -5/Cetus | Spotted Cetus Guard 17099 | -5/Cetus | Spotted Cetus Guard 17104 | -5/Cetus | Destroyed Cetus Guard 17114 | -5/Cetus | Allies destroyed Cetus Guard 17114 | -5/Cetus | Spotted Cetus Guard 17116 | -5/Cetus | Allies destroyed Cetus Guard 17123 | -5/Cetus | Destroyed Cetus Guard 17226 | -5/Cetus | Started Cetus Manufacturing Module 17251 | -5/Cetus | Manufactured an Enhanced Grunt 17257 | -5/Cetus | Escorted A7 to Cetus Mainframe 17276 | -5/Cetus | Manufactured an Enhanced Grunt 17301 | -5/Cetus | Manufactured an Enhanced Grunt 17311 | -5/Cetus | Discovered new exit (range 15) 17326 | -5/Cetus | Manufactured an Enhanced Grunt 17351 | -5/Cetus | Manufactured an Enhanced Grunt 17408 | -5/Cetus | Spotted Cetus Guard 17408 | -5/Cetus | Spotted Cetus Guard 17413 | -5/Cetus | Spotted Cetus Guard 17414 | -5/Cetus | Spotted Cetus Guard 17418 | -5/Cetus | Destroyed Cetus Guard 17423 | -5/Cetus | Destroyed Cetus Guard 17429 | -5/Cetus | Destroyed Cetus Guard 17432 | -5/Cetus | Destroyed Cetus Guard 17436 | -5/Cetus | Build established: Scavenger-Tank 17441 | -5/Cetus | Discovered new exit (range 15) 17450 | -5/Cetus | Met Revision 17 17547 | -5/Cetus | Entered Archives 17547 | -5/Archives | Accompanied by 6 allies (A7) 17552 | -5/Archives | Received a hacking code to weaken MAIN.C 17565 | -5/Archives | Met Zhirov 17571 | -5/Archives | Reinforcements dispatched to Archives 17584 | -5/Archives | Discovered new exit (range 15) 17616 | -5/Archives | Reinforcements dispatched to Archives 17623 | -5/Archives | Entered Hub_04(d) 17642 | -5/Hub_04(d) | Lost 5 allies 18021 | -5/Hub_04(d) | Network Hub disabled 18122 | -5/Hub_04(d) | Identified exit to Garrison 18122 | -5/Hub_04(d) | Entered Garrison 18364 | -5/Garrison | Triggered checkpoint 18405 | -5/Garrison | Triggered checkpoint 18551 | -5/Garrison | Rewired Striker 18553 | -5/Garrison | Rewired Striker 18631 | -5/Garrison | Triggered checkpoint 18633 | -5/Garrison | Triggered checkpoint 18648 | -5/Garrison | Triggered checkpoint 18673 | -5/Garrison | Triggered checkpoint 18751 | -5/Garrison | Triggered checkpoint 18847 | -5/Garrison | Expanded RIF knowledge: Threat Obfuscation 18851 | -5/Garrison | Heavy support dispatched to Factory 18966 | -5/Garrison | Discovered new exit (range 92) 18966 | -5/Garrison | Discovered new exit (range 23) 18966 | -5/Garrison | Discovered new exit (range 48) 19054 | -5/Garrison | Garrison Relay disabled 19204 | -5/Garrison | Expanded RIF knowledge: Hotswap 19276 | -5/Garrison | Garrison Relay disabled 19359 | -5/Garrison | Entered Factory 19359 | -4/Factory | Accompanied by 4 allies 19359 | -4/Factory | Evolved 2 slots: Power x1, Utility x1 19378 | -4/Factory | Build established: Bothacker-Tank 19441 | -4/Factory | Discovered new exit (range 16) 19450 | -4/Factory | Lost 4 allies 19769 | -4/Factory | Self-destructed Last Messages --------------- 19724_ Slug penetrates O-24 Administrator. 19724_ Destroyed Unknown Special Melee Weapon. 19724_ Slug penetrates Terminal. 19724_ Slug penetrates O-24 Administrator. 19724_ Destroyed Lgt. Deuterium Engine. 19724_ Terminal disabled. 19730_ U-05 Engineer builds a Wall. 19757_ Connecting with Terminal... >>Layout(Zone) Retrieving Zone 5A layout... Downloaded map data. >>Access(Emergency) Found 1 emergency access door: (97,180) Map updated. 19762_ Dropped Centrium Medium Armor Plating. 19762_ Acquired Unknown Processor. 19762_ Identified Jamming Amplifier. 19764_ Discarded Jamming Amplifier. 19766_ Acquired Centrium Medium Armor Plating. Map ----- +----------------------------------------------------+ | ?????????????????????????????????????????????????? | | ?????????????????????????????????????????????????? | | ?????????????????????????????????????????????????? | | ?????????????????????????????????????????????????? | | ?????????????????????????????????????????????????? | | ?????????????????????????????????????????????????? | | ?????????????????????????????????????????????????? | | ?????????????????????????????????????????????????? | | ?????????????????????????????????????????????????? | | ????????????????????????????? ??????????????????? | | ????????????????????????????# ??????#+#?????????? | | ??????????????????# + # +???????? | | ??????????????????# # # #???????# | | ??????????????????# # # ######### | | ??????????????????# + + # | | ??????????????????########### ########### | | ????????????????????????????# [ | | ????????????????????????????# | | ????????????????????????????# """"""" | | ????????????????????????????# """ ## | | ????????????????????????????# """ ## " " | | ?????????????????????######## """ ## T" | | ?????????????????????# # ## """ | | ?????????????????????# + ## ! | | ?????????????????????# # ## | | ?????????????????????# @ # ################# | | ?????????????????????# "T" # #???????????????? | | ?????????????????????# """ ######???????????????? | | ?????????????????????########????????????????????? | | ?????????????????????????????????????????????????? | | ?????????????????????????????????????????????????? | | | | | | | | | | | | | | | | | | | | | | | | | | | | | | | | | | | | | | | +----------------------------------------------------+ Best States ------------- Heat Dissipation 64 Energy Generation 41 Energy Capacity 575 Matter Stores 300 Matter Capacity 300 Sight Range 16 Terrain Scan Density 10 Additional Mass Support 6 Armor Coverage 675 Weapon Cycling 20 Evasion (%) 40 Targeting Accuracy 6 Core Analysis 6 Recoil Reduction 9 Kinecelleration 30 Relay Coupler Types 2 Relay Coupler Value 85 Item Schematics ----------------- Huge Storage Unit | -7/Factory | Hacked Robot Schematics ------------------ None Fabricated ------------ Huge Storage Unit | x1 | -6/Factory Repaired ---------- Med. Armor Plating | 18% | -9/Storage Med. Armor Plating | 34% | -8/Materials Alien Tech Used ----------------- None Achievements -------------- Oh No You Don't! Quantum Hacking Challenges ------------ None Game ------ Seed PropulsionGatlingImmobilizer Manual? 0 Play Time 03:00:26 Cumulative 40.8 hours Start 2025.07.28 @ 11:05:44 End 2025.08.01 @ 19:50:22 Sessions 9 Manual Loads 0 Difficulty Rogue Special Mode None Game No. 33 Rogue 33 Adventurer 0 Explorer 0 Win Type - Total 3 Types 2/0/1/0/0/0/0/0/0/0 Lore% 28 Gallery% 36 Achievement% 46 Wizard Run 0 Options --------- Layout 2 ASCII 0 Keyboard 1 Movement Vi Keybinds 0 Fullscreen 1 Font 18/SmallcapsGlow Map View 50x49 Zoom Use 0% Tactical HUD 1 Map Filters NONE Filters NONE Steam X RUN: ee50d470-0bb0-4332-925a-a8e9ea7bf350